Cogmind - Beta 10.2 @@@ ROGUE MODE // 2022.01.02 @ 15:35:56 Player: Ol Swarmie Result: Destroyed by G-47 Trooper with Particle Gun Performance ------------- Evolutions (1) 500 Regions Visited (4) 800 Robots Destroyed (27) 135 Value Destroyed (590) 590 Prototype IDs (1) 20 Alien Tech Used (0) 0 Bonus (0) 0 TOTAL SCORE: 2045 Bonus ------- None Cogmind --------- Core Integrity 0/400 Matter 280/300 Energy 22/100 System Corruption 0% Temperature Cool (9) Movement Core (150) Ox2 Location -9/Mines Parts ------- > --- POWER (1) -------- (None) > --- PROPULSION (3) --- (None) > --- UTILITY (3) ------ Medium Storage Unit Signal Interpreter > --- WEAPON (2) ------- (None) > --- INVENTORY (8) ---- Small Storage Unit High-capacity Matter Pod (99) Peak State ------------ > --- POWER ------------ Light Ion Engine > --- PROPULSION ------- Light Treads Light Treads Wheel > --- UTILITY ---------- Heat Sink Medium Storage Unit Light Armor Plating > --- WEAPON ----------- Improved Medium Laser Improved Medium Laser > --- INVENTORY -------- Ion Engine Flight Unit Flight Unit Small Storage Unit Signal Interpreter Medium Laser Medium Laser Small Laser [Rating: 13] Favorites ----------- Power Ion Engine Engine Ion Engine Propulsion Flight Unit Treads Light Treads Wheel Wheel Flight Unit Flight Unit Utility Medium Storage Unit Device Heat Sink Storage Medium Storage Unit Processor Signal Interpreter Protection Light Armor Plating Weapon Improved Medium Laser Energy Gun Improved Medium Laser Ballistic Gun Light Assault Rifle Build | -11 -10 -10 -9 -9 ------- Run | Scr Mat Min Mat Min Slots Evolved 2 | . . . 2 . Power . | . . . . . Propulsion 1 | . . . 1 . Utility 1 | . . . 1 . Weapon . | . . . . . Parts Attached 45 | 6 12 . 21 6 Power 4 | 1 1 . 2 . Engine 4 | 1 1 . 2 . Core . | . . . . . Reactor . | . . . . . Propulsion 19 | 2 3 . 11 3 Treads 6 | 1 2 . 3 . Leg . | . . . . . Wheel 3 | 1 1 . 1 . Hover . | . . . . . Flight 10 | . . . 7 3 Utility 12 | 1 4 . 5 2 Device 2 | . 2 . . . Storage 5 | 1 1 . 2 1 Processor 1 | . . . 1 . Hackware . | . . . . . Protection 4 | . 1 . 2 1 Artifact . | . . . . . Weapon 10 | 2 4 . 3 1 Energy Gun 8 | . 4 . 3 1 Energy Cannon . | . . . . . Ballistic Gun 2 | 2 . . . . Ballistic Cannon . | . . . . . Launcher . | . . . . . Special Weapon . | . . . . . Impact Weapon . | . . . . . Slashing Weapon . | . . . . . Piercing Weapon . | . . . . . Special Melee Weapon . | . . . . . Unidentified Prototypes 1 | . . . 1 . Parts Lost 15 | . 5 . 2 8 Power 2 | . 1 . 1 . Propulsion 6 | . . . 1 5 Utility 2 | . 1 . . 1 Weapon 5 | . 3 . . 2 Highest Loss Streak 4 | . 3 . 1 4 Average Slot Usage (%) 83 | . 95 100 90 64 Engine 7 | . 13 14 10 . Treads 11 | . 21 28 13 . Wheel 4 | . 6 . 6 . Flight 14 | . . . 12 30 Device 4 | . 4 14 7 . Storage 11 | . 14 14 11 11 Processor 4 | . . . 2 11 Protection 6 | . 8 . 7 2 Energy Gun 12 | . 7 28 18 9 Ballistic Gun 5 | . 18 . . . Naked Turns . | . . . . . Heaviest Build 21 | 11 18 18 21 12 Greatest Support 40 | 20 40 40 40 12 Greatest Overweight (x) 2 | 1 1 . 1 2 Average Overweight (x) . | . . . . . Largest Inventory Capacity 8 | 6 8 8 8 8 Average Capacity 7 | 5 7 8 7 6 Most Carried 8 | 4 8 7 8 6 Average Carried 5 | 1 6 7 6 5 Final Capacity 8 | 6 8 8 6 8 Final Carried 7 | 4 7 7 6 2 Class Distribution -------------------- 100% | Mutant Dominant Class ---------------- Mutant | -10/Materials Mutant | -10/Mines Mutant | -9/Materials Mutant | -9/Mines Resources | -11 -10 -10 -9 -9 ----------- Run | Scr Mat Min Mat Min Matter Collected 811 | 264 149 20 360 18 Remotely . | . . . . . Salvage Created 960 | 59 299 . 553 49 Parts 60 | 2 19 . 38 1 Haulers Intercepted 3 | . . . 3 . Recyclers Shooed . | . . . . . Parts Field Recycled . | . . . . . Retrieved Matter . | . . . . . Parts Self-Destructed . | . . . . . Prevented . | . . . . . Kills | -11 -10 -10 -9 -9 ------- Run | Scr Mat Min Mat Min Combat Hostiles Destroyed 21 | . 8 . 12 1 Guns 21 | . 8 . 12 1 Classes Destroyed 6 | 1 2 . 3 . Hauler 3 | . . . 3 . Recycler 1 | 1 . . . . Watcher 2 | . . . 2 . Swarmer 8 | . 1 . 7 . Grunt 12 | . 7 . 4 1 Sentry 1 | . . . 1 . Best Kill Streak 4 | 1 3 . 4 1 Combat Bots Only 4 | . 3 . 4 1 Max Kills in Single Turn 2 | 1 1 . 2 1 Gunslinging 1 | . . . 1 . Exploded . | . . . . . Melee . | . . . . . Uniques/NPCs Destroyed . | . . . . . Combat | -11 -10 -10 -9 -9 -------- Run | Scr Mat Min Mat Min Damage Taken 1932 | . 747 . 442 743 Core 533 | . 133 . 87 313 Absorbed by Shields . | . . . . . Core Remaining (%) 73 | 100 . 46 . . Volleys Fired 117 | 4 46 . 61 6 Largest 2 | 2 2 . 2 2 Hottest 112 | 40 80 . 112 112 Shots Fired 202 | 8 83 . 101 10 Gun 202 | 8 83 . 101 10 Cannon . | . . . . . Launcher . | . . . . . Special . | . . . . . Kinetic 73 | 8 65 . . . Thermal 129 | . 18 . 101 10 Explosive . | . . . . . Electromagnetic . | . . . . . Robot Hit Streak 18 | 4 18 . 10 7 Robot Miss Streak 4 | 1 4 . 4 2 Penetration Max . | . . . . . Secondary Targets 3 | . 1 . 2 . Max Gunslinging Chain 1 | . 1 . 1 . Shots Hit Robots 135 | 6 57 . 65 7 Core Hits 42 | 2 18 . 21 1 Critical Hits 1 | . 1 . . . Critical Kills 1 | . 1 . . . Critical Parts Destroyed . | . . . . . Melee Attacks . | . . . . . Impact . | . . . . . Slashing . | . . . . . Piercing . | . . . . . Sneak Attacks . | . . . . . Combat Hostiles . | . . . . . Follow-up Attacks . | . . . . . Damage Inflicted 1714 | 53 481 . 1064 116 Guns 1714 | 53 481 . 1064 116 Cannons . | . . . . . Explosions . | . . . . . Melee . | . . . . . Ramming . | . . . . . Kinetic 354 | 53 301 . . . Thermal 1360 | . 180 . 1064 116 Explosive . | . . . . . Electromagnetic . | . . . . . Impact . | . . . . . Slashing . | . . . . . Piercing . | . . . . . Highest Corruption . | . . . . . Average Corruption . | . . . . . Corruption Purged . | . . . . . Overload Shots . | . . . . . Overflow Damage . | . . . . . Projectiles . | . . . . . Explosions . | . . . . . Melee . | . . . . . Knockbacks . | . . . . . Impact . | . . . . . Kinetic . | . . . . . Secondary . | . . . . . Self-Inflicted Damage . | . . . . . Shots . | . . . . . Rammed . | . . . . . Targets Rammed . | . . . . . Kicked . | . . . . . Crushed . | . . . . . Highest Temperature 185 | . 111 . 185 165 Average Temperature 54 | . 38 . 60 74 Received Heat Transfer 636 | . 303 . 129 204 Siege Activations . | . . . . . Robots Corrupted . | . . . . . Combat Hostiles . | . . . . . Parts Fried . | . . . . . Impact Corruptions . | . . . . . Robots Melted . | . . . . . Combat Hostiles . | . . . . . Parts Melted 7 | . 2 . 4 1 Heat Transferred 3101 | . 400 . 2442 259 Parts Sabotaged . | . . . . . Parts Stolen . | . . . . . Parts Stripped . | . . . . . Power Chain Reactions . | . . . . . Missiles Intercepted . | . . . . . Alert | -11 -10 -10 -9 -9 ------- Run | Scr Mat Min Mat Min Peak Influence 233 | 5 197 19 233 75 Initial 75 | . 3 19 7 75 Average 76 | . 64 19 114 56 Maximum Alert Level 1 | . . . 1 . Low Security (%) 97 | 100 100 100 92 100 Level 1 2 | . . . 7 . Level 2 . | . . . . . Level 3 . | . . . . . Level 4 . | . . . . . Level 5 . | . . . . . High Security . | . . . . . Max Security . | . . . . . Squads Dispatched 5 | . 2 . 3 . Investigation 2 | . 1 . 1 . Extermination . | . . . . . Reinforcement 3 | . 1 . 2 . Assault . | . . . . . Garrison . | . . . . . Intercept . | . . . . . Construction Impeded . | . . . . . Haulers Reinforced . | . . . . . Stealth | -11 -10 -10 -9 -9 --------- Run | Scr Mat Min Mat Min Distress Signals 4 | . 3 . 1 . Communications Jammed . | . . . . . Distress Signals . | . . . . . Times Spotted 47 | . 16 . 20 11 Peak Tracking Total 8 | . 5 . 5 8 Tactical Retreats 7 | . 4 . . 3 Traps | -11 -10 -10 -9 -9 ------- Run | Scr Mat Min Mat Min Traps Triggered 2 | . 1 . 1 . Indirectly . | . . . . . Trap Hack Attempts . | . . . . . Triggered . | . . . . . Disarmed . | . . . . . Reprogrammed . | . . . . . Reused . | . . . . . Traps Extracted . | . . . . . Installed . | . . . . . Triggered . | . . . . . Machines | -11 -10 -10 -9 -9 ---------- Run | Scr Mat Min Mat Min Machines Disabled . | . . . . . Max in Single Turn . | . . . . . Machines Sabotaged . | . . . . . Garrisons Compromised . | . . . . . Overloaded Fab Kills . | . . . . . Fab Network Shutdowns . | . . . . . Hacking | -11 -10 -10 -9 -9 --------- Run | Scr Mat Min Mat Min Machines Accessed 5 | . 3 . 2 . Terminals 5 | . 3 . 2 . Fabricators . | . . . . . Repair Stations . | . . . . . Recycling Units . | . . . . . Scanalyzers . | . . . . . Garrison Access . | . . . . . Total Hacks 17 | . 11 . 6 . Successful 5 | . 3 . 2 . Failed 12 | . 8 . 4 . Catastrophic 2 | . 1 . 1 . Database Lockouts . | . . . . . Manual 14 | . 9 . 5 . Terminals 17 | . 11 . 6 . Fabricators . | . . . . . Repair Stations . | . . . . . Recycling Units . | . . . . . Scanalyzers . | . . . . . Garrison Access . | . . . . . Terminal Hacks 4 | . 2 . 2 . Robot Analysis 1 | . 1 . . . Branch Access Points 1 | . . . 1 . Locate Traps 1 | . . . 1 . Hauler Manifests 1 | . 1 . . . Fabricator Hacks . | . . . . . Repair Station Hacks . | . . . . . Recycling Unit Hacks . | . . . . . Scanalyzer . | . . . . . Garrison Access Hacks . | . . . . . Unauthorized Hacks 1 | . 1 . . . Terminals 1 | . 1 . . . Track 1 | . 1 . . . Fabricators . | . . . . . Repair Stations . | . . . . . Recycling Units . | . . . . . Scanalyzers . | . . . . . Garrison Access . | . . . . . Data Cores Recovered . | . . . . . Used . | . . . . . Hacking Detections 5 | . 3 . 2 . Full Trace Events . | . . . . . Feedback Events . | . . . . . Feedback Blocked . | . . . . . Robot Schematics Acquired . | . . . . . Robots Built . | . . . . . Matter . | . . . . . Time . | . . . . . Total Robot Build Rating . | . . . . . Part Schematics Acquired . | . . . . . Parts Built . | . . . . . Matter . | . . . . . Time . | . . . . . Total Part Build Rating . | . . . . . Parts Repaired . | . . . . . Time . | . . . . . Parts Recycled . | . . . . . Recycled Matter . | . . . . . Retrieved Matter . | . . . . . Retrieved Components . | . . . . . Parts Scanalyzed . | . . . . . Part Schematics Acquired . | . . . . . Parts Damaged . | . . . . . Bothacking | -11 -10 -10 -9 -9 ------------ Run | Scr Mat Min Mat Min Used RIF Installer . | . . . . . Robots Hacked . | . . . . . Non-combat . | . . . . . Combat . | . . . . . Robot Hacks Applied . | . . . . . Relay Couplers Released . | . . . . . Robots Rewired . | . . . . . Allies Hacked . | . . . . . Hacks Repelled . | . . . . . Allies | -11 -10 -10 -9 -9 -------- Run | Scr Mat Min Mat Min Total Allies . | . . . . . Largest Group . | . . . . . Highest-Rated Group . | . . . . . Highest-Rated Ally . | . . . . . Total Orders . | . . . . . Ally Attacks . | . . . . . Total Damage . | . . . . . Kills . | . . . . . Allies Corrupted . | . . . . . Allies Melted . | . . . . . Intel | -11 -10 -10 -9 -9 ------- Run | Scr Mat Min Mat Min Robot Analysis Total 1 | . 1 . . . Derelict Logs Recovered 1 | . . . . 1 Drone Launches . | . . . . . Drone Recoveries . | . . . . . Exploration | -11 -10 -10 -9 -9 ------------- Run | Scr Mat Min Mat Min Turns Passed 1741 | 63 469 32 618 559 Spaces Moved 1201 | 43 291 21 453 393 Core 7 | 5 . . . 2 Treads 275 | 2 93 21 159 . Legs . | . . . . . Wheels 265 | 36 198 . 31 . Hover . | . . . . . Flight 654 | . . . 263 391 Fastest Speed 34 | 50 90 160 34 34 Average Speed 75 | 90 112 160 82 35 Slowest Speed 180 | 160 160 160 180 150 Overloaded Moves . | . . . . . Propulsion Burnouts . | . . . . . Robots Hopped 12 | . . . 4 8 Cave-ins Triggered . | . . . . . Exploration Rate (%) 31 | 4 37 7 41 69 Regions Visited 4 Branch Regions 2 Pre-discovered Areas . | . . . . . Known Exits Taken 1 | . . . 1 . Unknown Exits Taken 3 | 1 1 1 . . Scrap Searched 2 | . . 1 . 1 Spaces Dug . | . . . . . Terrain Destroyed . | . . . . . Melee . | . . . . . Projectile . | . . . . . AOE . | . . . . . Terrain Rammed . | . . . . . Walls Destroyed . | . . . . . Machines Disabled . | . . . . . Actions | -11 -10 -10 -9 -9 --------- Run | Scr Mat Min Mat Min Total 1831 | 57 361 20 598 795 Wait 436 | . 4 . 35 397 Move 1176 | 42 290 20 445 379 Hop 9 | . . . 3 6 Pick Up 18 | 5 5 . 8 . Fast Attach 18 | 5 5 . 8 . Attach 17 | 1 3 . 8 5 Detach 12 | . 2 . 9 1 Swap 10 | . 4 . 5 1 Drop 18 | . 2 . 16 . Fire 117 | 4 46 . 61 6 Melee . | . . . . . Ram . | . . . . . Kick . | . . . . . Crush . | . . . . . Escape Stasis . | . . . . . Rewire . | . . . . . Trap . | . . . . . Miscellaneous . | . . . . . Route ------- -11/Scrapyard -10/Materials -10/Mines -9/Materials -9/Mines History --------- Turn | Location | Event 15 | -11/Scrapyard | Discovered new exit (range 15) 64 | -11/Scrapyard | Entered Materials 303 | -10/Materials | Build established: Mutant 414 | -10/Materials | Lost 3 parts (1p2w) 457 | -10/Materials | Discovered new exit (range 12) 482 | -10/Materials | Core integrity fell below 50% 533 | -10/Materials | Entered Mines 548 | -10/Mines | Met a Derelict bent on vengeance 549 | -10/Mines | Discovered new exit (range 10) 565 | -10/Mines | Entered Materials 565 | -9/Materials | Evolved 2 slots: Propulsion x1, Utility x1 945 | -9/Materials | Identified exit to Mines 1183 | -9/Materials | Entered Mines 1364 | -9/Mines | Learned Materials garrison access intel 1406 | -9/Mines | Found a hidden stash of uninstalled traps 1683 | -9/Mines | Lost 4 parts (1n1u2w) 1700 | -9/Mines | Core integrity fell below 50% 1737 | -9/Mines | Core integrity fell below 20% 1742 | -9/Mines | Destroyed by G-47 Trooper with Particle Gun Last Messages --------------- 01179_ K-01 Serf collects debris. 01179_ Acquired Flight Unit. 01180_ K-01 Serf collects debris. LOCATION=MINES GOAL=ESCAPE 01188_ Searching scrap... 01188_ Found Lgt. EM Pulse Cannon. 01188_ Found 18 Matter. 01190_ Acquired 18 matter. 01364_ Acquired derelict log, extracted data. Data stored: Materials garrison access intel. 01406_ A stash of uninstalled traps is collected here! 01630_ Imp. Medium Laser destroyed. 01632_ Ion Engine melted. 01632_ G-34 Mercenary destroyed. 01639_ Flight Unit destroyed. 01647_ Imp. Medium Laser destroyed. 01652_ Hrd. Light Armor Plating destroyed. 01680_ K-01 Serf collects debris. 01714_ Flight Unit destroyed. Map ----- +----------------------------------------------------+ | ??????????????????????????????? | | ??????????????????????????????? | | ??????????????????????????????? | | ???????????????????????### ### | | ???????????????????????# | | ??????????????????????# | | ?????????????????????# # | | ?????????????????? ? | | ????????????????? ?? | | ?????????????????? ##??? | | ?????? ??????????? ?????? | | ?????? ??????????? ??????? | | ?????? ???????????? ##???????? | | ????? ????????????#??????????? | | ????? ???????????????????????? | | ????? ???????????????????????? | | ????? ???????????????????????? | | ?????# #??????????????????????? | | ?????# #??????????????????????? | | ?????# #??????????????????????? | | ?????# #??????????????????????? | | ?????# ??????????????????????? | | ?????# #??????????????????????? | | ?????# #??????????????????????# | | ?##### ###????????????????????# | | ?# @ g#????????????????????# | | ?#""" #????????????????????# | | ?#""" #????????????????????? | | ?#"""sgsg#????????????????????? | | ?# #??????????????# ##### | | ?###### ##??????????????# | | ??????# #???????????????####### | | ??????#s#?????????????????????# | | ??????#t#?????????????? #????# | | ??????# #????????????? #???# | | ??????# #####???????? !!! ???# | | ??????# #????????? ! ???# | | ??????#### #????????? ! ???# | | ?????????# #?????????? | | ?????????# ##?????# #### | | ????????## ###???##$### ##?? | | ????????# ##???????# #?? | | ????????# ##### #?? ##? | | ????????## #??# #? | | ?????????## ######??# ## | | ??????????## ######?## # | | ???????????### ## ### | | ?????????????## | | ??????????????## ## | | ???????????????# #### | +----------------------------------------------------+ Best States ------------- Heat Dissipation 38 Energy Generation 10 Energy Capacity 250 Matter Stores 300 Matter Capacity 300 Sight Range 16 Terrain Scan Density 10 Armor Coverage 150 Evasion (%) 63 Recoil Reduction 2 Item Schematics ----------------- None Robot Schematics ------------------ None Fabricated ------------ Nothing Alien Tech Used ----------------- None Achievements -------------- None Challenges ------------ None Game ------ Seed EnhancedFocalDesublimator Manual? 0 Play Time 00:36:27 Cumulative 13.7 hours Start 2022.01.02 @ 14:49:34 End 2022.01.02 @ 15:35:56 Sessions 1 Manual Loads 0 Difficulty Rogue Special Mode None Game No. 13 Rogue 13 Adventurer 0 Explorer 0 Win Type - Total 0 Types 0/0/0/0/0/0/0/0/0 Lore% 10 Gallery% 17 Achievement% 17 Wizard Run 0 Options --------- ASCII 0 Keyboard 1 Movement Numpad Keybinds 0 Fullscreen 2 Font 24/Proggy Map View 76x50 Tactical HUD 1 Map Filters NONE Filters NONE Steam 1 RUN: fbd18255-035f-4d2c-b3c9-2c9ba21d5beb